bitfinex/quotes_BTCUSD_20241022
["timestamp","ask_amount","ask_price","bid_price","bid_amount"]
[1729562973146,0.000837,67722.0,67721.0,0.23147101]
[1729562973357,0.000837,67722.0,67721.0,0.08380701]
[1729562975340,0.02729378,67722.0,67721.0,0.08380701]
[1729562980950,0.02729378,67722.0,67721.0,0.23147101]
[1729562981181,0.000837,67722.0,67721.0,0.23147101]
[1729562981610,0.236599,67722.0,67721.0,0.03484786]
[1729562981840,0.088937,67722.0,67721.0,0.03484786]
[1729562982054,0.236599,67722.0,67721.0,0.03481939]
[1729562982281,0.088937,67722.0,67721.0,0.03481939]
[1729562982497,0.088937,67722.0,67721.0,0.028]
[1729562982712,0.083937,67722.0,67721.0,0.175664]
[1729562982918,0.083937,67722.0,67721.0,0.03481939]
[1729562984925,0.12412319,67722.0,67721.0,0.03481939]
[1729562987267,0.083137,67722.0,67721.0,0.03481939]
[1729562987918,0.082937,67722.0,67721.0,0.03481939]
[1729562988134,0.082537,67722.0,67721.0,0.03481939]
[1729562988342,0.082237,67722.0,67721.0,0.03481939]
[1729562988770,0.081937,67722.0,67721.0,0.03481939]
[1729562989241,0.081237,67722.0,67721.0,0.03481939]
[1729562989462,0.086237,67722.0,67721.0,0.03647139]
[1729562989682,0.44876413,67722.0,67721.0,0.03647139]
[1729562989926,0.49295823,67722.0,67721.0,0.029652]
[1729562990152,0.49471882,67722.0,67721.0,0.029652]
[1729562990377,0.75128038,67722.0,67721.0,0.029652]
[1729562990599,0.77317743,67722.0,67721.0,0.029652]
[1729562990821,0.66259218,67722.0,67721.0,0.029652]
[1729562991062,0.92136508,67722.0,67721.0,0.029652]
[1729562991496,0.92116497,67722.0,67721.0,0.029652]
[1729562991714,0.89895877,67722.0,67721.0,0.029652]
[1729562991924,0.5821058,67722.0,67721.0,0.029652]
[1729562992141,0.74989962,67722.0,67721.0,0.029652]
[1729562992351,0.34603636,67722.0,67721.0,0.029652]
[1729562992564,0.182863,67722.0,67721.0,0.029652]
[1729562992767,0.24916816,67722.0,67721.0,0.029652]
[1729562992978,0.39683016,67722.0,67721.0,0.029652]
[1729562993205,0.182863,67722.0,67721.0,0.029652]
[1729562993433,0.49369935,67722.0,67721.0,0.029652]
[1729562993690,0.49831882,67722.0,67721.0,0.029652]
[1729562993911,0.5646272,67722.0,67721.0,0.029652]
[1729562994348,0.49831882,67722.0,67721.0,0.029652]
[1729562994823,0.49371687,67722.0,67721.0,0.029652]
[1729562995052,0.74991813,67722.0,67721.0,0.029652]
[1729562995267,0.49831882,67722.0,67721.0,0.029652]
[1729562995720,0.74993856,67722.0,67721.0,0.029652]
[1729562995944,0.51386912,67722.0,67721.0,0.029652]
[1729562996371,0.60227656,67722.0,67721.0,0.029652]
[1729562996510,0.74993856,67722.0,67721.0,0.029652]
[1729562996911,0.74997326,67722.0,67721.0,0.029652]
[1729562997146,0.66153112,67722.0,67721.0,0.029652]
[1729562997592,0.3460753,67722.0,67721.0,0.029652]
[1729562997807,0.58220059,67722.0,67721.0,0.029652]
[1729562998458,0.4937579,67722.0,67721.0,0.029652]
[1729562998758,0.000826,67722.0,67721.0,0.177316]
[1729562998942,0.000826,67722.0,67721.0,0.32627515]
[1729562999168,0.000826,67722.0,67721.0,0.33312078]
[1729563001024,0.000826,67722.0,67721.0,0.33812033]
[1729563001261,0.000826,67722.0,67721.0,0.35212033]
[1729563001481,0.000826,67722.0,67721.0,0.36612033]
[1729563001700,0.000826,67722.0,67721.0,0.35212033]
[1729563001925,0.000826,67722.0,67721.0,0.43402033]
[1729563002147,0.000826,67722.0,67721.0,0.44802033]
[1729563002382,0.000826,67722.0,67721.0,0.81241415]
[1729563002588,0.000826,67722.0,67721.0,0.64157524]
[1729563003034,0.000826,67722.0,67721.0,0.65557524]
[1729563003265,0.000826,67722.0,67721.0,0.64157524]
[1729563003496,0.000826,67722.0,67721.0,0.64257524]
[1729563003710,0.000826,67722.0,67721.0,0.62757524]
[1729563003934,0.000826,67722.0,67721.0,0.62857524]
[1729563004336,0.000826,67722.0,67721.0,0.62957524]
[1729563004547,0.000826,67722.0,67721.0,0.62857524]
[1729563004768,0.000826,67722.0,67721.0,0.62957524]
[1729563005675,0.000826,67722.0,67721.0,0.61862033]
[1729563005916,0.000826,67722.0,67721.0,0.6295741]
[1729563008479,0.000826,67722.0,67721.0,0.4280741]
[1729563009160,0.000826,67722.0,67721.0,0.41712033]
[1729563011078,0.1855655,67722.0,67721.0,0.15945678]
[1729563011303,0.16861982,67722.0,67721.0,0.15945678]
[1729563011522,0.24691982,67722.0,67721.0,0.15945678]
[1729563011989,0.24691982,67722.0,67721.0,0.15845678]
[1729563012213,0.24691982,67722.0,67721.0,0.15745678]
[1729563012444,0.24691982,67722.0,67721.0,0.00849763]
[1729563012681,0.25391982,67722.0,67721.0,0.00949763]
[1729563012907,0.24691982,67722.0,67721.0,0.00949763]
[1729563013802,0.24791982,67722.0,67721.0,0.02349763]
[1729563014017,0.24691982,67722.0,67721.0,0.00849763]
[1729563014464,0.24691982,67722.0,67721.0,0.02149763]
[1729563014465,0.67037564,67722.0,67721.0,0.02149763]
[1729563014688,0.67037564,67722.0,67721.0,0.014652]
[1729563014910,0.67037564,67722.0,67721.0,0.001652]
[1729563014911,0.92099274,67722.0,67721.0,0.001652]
[1729563015363,0.92199274,67722.0,67721.0,0.003652]
[1729563015578,0.92300791,67722.0,67721.0,0.017652]
[1729563015784,0.92100791,67722.0,67721.0,0.001652]
[1729563016000,0.75321409,67722.0,67721.0,0.015652]
[1729563016216,0.75521409,67722.0,67721.0,0.017652]
[1729563016434,0.92200791,67722.0,67721.0,0.003652]
[1729563016723,0.92300791,67722.0,67721.0,0.010652]
[1729563016937,0.92200791,67722.0,67721.0,0.003652]
[1729563017364,0.92200791,67722.0,67721.0,0.010652]
[1729563017571,0.92300791,67722.0,67721.0,0.019652]
[1729563017816,0.83458257,67722.0,67721.0,0.019652]
[1729563019315,0.8412615,67722.0,67721.0,0.019652]
[1729563019530,0.8432615,67722.0,67721.0,0.019652]
[1729563019746,0.8432615,67722.0,67706.0,0.00189]
[1729563019747,0.1931,67707.0,67706.0,0.00189]
[1729563019983,0.157708,67701.0,67698.0,0.00209]
[1729563020223,0.39181534,67701.0,67698.0,0.00209]
[1729563020467,0.3918154,67701.0,67698.0,0.00209]
[1729563020698,0.32550182,67701.0,67698.0,0.00209]
[1729563020941,0.36968918,67701.0,67698.0,0.00209]
[1729563021171,0.01,67699.0,67698.0,0.00209]
[1729563021383,0.157712,67699.0,67698.0,0.00209]
[1729563022446,0.011,67699.0,67698.0,0.00809]
[1729563022651,0.011,67699.0,67698.0,0.00209]
[1729563022652,0.01,67699.0,67698.0,0.00209]
[1729563023074,0.01,67699.0,67698.0,0.00809]
[1729563023075,0.011,67699.0,67698.0,0.00809]
[1729563023280,0.05963792,67699.0,67698.0,0.00209]
[1729563023918,0.06063792,67699.0,67698.0,0.00709]
[1729563024135,0.20834992,67699.0,67698.0,0.00709]
[1729563024344,0.20734992,67699.0,67698.0,0.00209]
[1729563024762,0.20834992,67699.0,67698.0,0.01309]
[1729563024971,0.06163792,67699.0,67698.0,0.01309]
[1729563025180,0.06063792,67699.0,67698.0,0.00709]
[1729563025362,0.06163792,67699.0,67698.0,0.01309]
[1729563025803,0.06063792,67699.0,67698.0,0.00709]
[1729563026014,0.06163792,67699.0,67698.0,0.01309]
[1729563026238,0.011,67699.0,67698.0,0.00709]
[1729563026423,0.011,67699.0,67698.0,0.01334626]
[1729563026658,0.011,67699.0,67698.0,0.00834626]
[1729563026888,0.007,67699.0,67698.0,0.00209]
[1729563027078,0.002,67699.0,67698.0,0.00209]
[1729563027325,0.002,67699.0,67698.0,0.00834626]
[1729563027541,0.002,67699.0,67698.0,0.29876315]
[1729563027773,0.16779382,67702.0,67698.0,0.15104915]
[1729563028045,0.001,67699.0,67698.0,0.15613011]
[1729563028248,0.00185234,67699.0,67698.0,0.16213011]
[1729563028487,0.00085234,67699.0,67698.0,0.15613011]
[1729563028925,0.00185234,67699.0,67698.0,0.16213011]
[1729563029855,0.00185234,67699.0,67698.0,0.01441611]
[1729563030067,0.00185234,67699.0,67698.0,0.16337526]
[1729563030289,0.001,67699.0,67698.0,0.01441611]
[1729563030499,0.001,67699.0,67698.0,0.02041611]
[1729563031175,0.001,67699.0,67698.0,0.01441611]
[1729563031402,0.002,67699.0,67698.0,0.02041611]
[1729563031589,0.03424958,67699.0,67698.0,0.02498054]
[1729563031843,0.002,67699.0,67698.0,0.02498054]
[1729563035069,0.0793,67699.0,67698.0,0.01409]
[1729563035285,0.176,67699.0,67698.0,0.01409]
[1729563035490,0.328712,67699.0,67698.0,0.01409]
[1729563035865,0.42518366,67699.0,67698.0,0.01409]
[1729563036069,0.42518366,67699.0,67698.0,0.015742]
[1729563036323,0.42518366,67699.0,67692.0,0.22312298]
[1729563036324,0.005,67694.0,67692.0,0.22312298]
[1729563036527,0.32051882,67693.0,67692.0,0.22312298]
[1729563036657,0.17279382,67693.0,67692.0,0.22312298]
[1729563037052,0.17279382,67693.0,67684.0,0.001652]
[1729563037053,0.147728,67692.0,67685.0,0.005]
[1729563037234,0.07411448,67693.0,67688.0,0.22312298]
[1729563037663,0.07411448,67693.0,67692.0,0.006]
[1729563037664,0.06911448,67693.0,67692.0,0.006]
[1729563037883,0.07011448,67693.0,67692.0,0.012]
[1729563038089,0.23811448,67693.0,67692.0,0.012]
[1729563038315,0.23711448,67693.0,67692.0,0.006]
[1729563038532,0.17679382,67693.0,67692.0,0.006]
[1729563038751,0.17679382,67693.0,67690.0,0.147731]
[1729563038965,0.16779382,67691.0,67690.0,0.14773]
[1729563039863,0.16779382,67691.0,67686.0,0.44443615]
[1729563040084,0.16779382,67689.0,67688.0,0.66633198]
[1729563040291,0.0828,67698.0,67692.0,0.147727]
[1729563040292,0.16779382,67693.0,67692.0,0.147727]
[1729563040519,0.16779382,67693.0,67689.0,0.14895915]
[1729563040743,0.17879382,67693.0,67689.0,0.14895915]
[1729563040975,0.17779382,67693.0,67689.0,0.14895915]
[1729563041183,0.03355108,67692.0,67689.0,0.14895915]
[1729563041398,0.03355108,67692.0,67690.0,0.147731]
[1729563042049,0.17879382,67693.0,67690.0,0.147731]
[1729563042294,0.16779382,67693.0,67689.0,0.14895915]
[1729563042522,0.16779382,67690.0,67689.0,0.29669315]
[1729563042957,0.16779382,67690.0,67689.0,0.14895915]
[1729563043166,0.16779382,67690.0,67689.0,0.29669315]
[1729563043389,0.1847732,67690.0,67689.0,0.29669315]
[1729563044720,0.16879382,67690.0,67689.0,0.29669315]
[1729563045340,0.16979382,67690.0,67689.0,0.29669315]
[1729563046549,0.16979382,67690.0,67689.0,0.14895915]
[1729563046775,0.16979382,67690.0,67689.0,0.29669315]
[1729563047268,0.16979382,67690.0,67689.0,0.14895915]
[1729563047608,0.1867732,67690.0,67689.0,0.14895915]
[1729563047847,0.1867732,67690.0,67684.0,0.00665155]
[1729563047848,0.2778732,67690.0,67684.0,0.001652]
[1729563048083,0.16779382,67686.0,67684.0,0.001652]
[1729563050155,0.086,67689.0,67685.0,0.01097192]
[1729563050364,0.16779382,67686.0,67685.0,0.01097192]
[1729563050573,0.17379382,67686.0,67685.0,0.01097192]
[1729563050786,0.17979382,67686.0,67685.0,0.01097192]
[1729563051249,0.17379382,67686.0,67685.0,0.01097192]
[1729563051483,0.18179382,67686.0,67685.0,0.01097192]
[1729563051698,0.17579382,67686.0,67685.0,0.01097192]
[1729563051907,0.16779382,67686.0,67685.0,0.01097192]
[1729563052115,0.16879382,67686.0,67685.0,0.01097192]
[1729563053196,0.16979382,67686.0,67685.0,0.01097192]
[1729563053410,0.16879382,67686.0,67685.0,0.01097192]
[1729563053641,0.16779382,67686.0,67685.0,0.01097192]
[1729563053860,0.16979382,67686.0,67685.0,0.01097192]
[1729563054307,0.2197563,67686.0,67685.0,0.01097192]
[1729563054521,0.2187563,67686.0,67685.0,0.01097192]
[1729563054731,0.2197563,67686.0,67685.0,0.01097192]
[1729563056812,0.16979382,67686.0,67685.0,0.01097192]
[1729563057705,0.16961604,67686.0,67685.0,0.01097192]
[1729563060012,0.17461604,67686.0,67685.0,0.01097192]
[1729563060235,0.32235704,67686.0,67685.0,0.01097192]
[1729563060428,0.005,67685.0,67684.0,0.001652]
[1729563061152,0.03288814,67685.0,67684.0,0.001652]
[1729563061376,0.005,67685.0,67684.0,0.001652]
[1729563061864,0.006,67685.0,67684.0,0.001652]
[1729563062775,0.007,67685.0,67684.0,0.001652]
[1729563069047,0.007,67685.0,67684.0,0.01267192]
[1729563069263,0.007,67685.0,67684.0,0.001652]
[1729563069477,0.04138715,67685.0,67684.0,0.01267192]
[1729563069705,0.002,67685.0,67684.0,0.149397]
[1729563070133,0.002,67685.0,67684.0,0.16041692]
[1729563072218,0.002,67685.0,67684.0,0.01267192]
[1729563072584,0.002,67685.0,67684.0,0.01767192]
[1729563072762,0.002,67685.0,67684.0,0.01267192]
[1729563072989,0.002,67685.0,67684.0,0.01767192]
[1729563073232,0.002,67685.0,67684.0,0.01267192]
[1729563073443,0.0194616,67685.0,67684.0,0.01267192]
[1729563074231,0.1021616,67685.0,67684.0,0.01267192]
[1729563074513,0.0847,67685.0,67684.0,0.001652]
[1729563074727,0.002,67685.0,67684.0,0.001652]
[1729563074940,0.002,67685.0,67684.0,0.01265025]
[1729563075150,0.002,67685.0,67684.0,0.01264681]
[1729563079098,0.002,67685.0,67684.0,0.31435096]
[1729563079985,0.000827,67686.0,67685.0,0.147743]
[1729563080219,0.000827,67686.0,67685.0,0.30170215]
[1729563080451,0.000827,67686.0,67685.0,0.31769829]
[1729563080681,0.000827,67686.0,67685.0,0.34069829]
[1729563080900,0.000827,67686.0,67685.0,0.43159829]
[1729563082244,0.000827,67686.0,67685.0,0.51479829]
[1729563082459,0.014827,67686.0,67685.0,0.51579829]
[1729563083362,0.009827,67686.0,67685.0,0.51579829]
[1729563083552,0.018827,67686.0,67685.0,0.51679829]
[1729563083815,0.009827,67686.0,67685.0,0.84260621]
[1729563084046,0.018827,67686.0,67685.0,0.84549615]
[1729563084505,0.018827,67686.0,67685.0,0.84449615]
[1729563084731,0.009827,67686.0,67685.0,0.84449615]
[1729563084957,0.018827,67686.0,67685.0,0.84549615]
[1729563085172,0.009827,67686.0,67685.0,0.84449615]
[1729563085626,0.023827,67686.0,67685.0,0.79959211]
[1729563085868,0.009827,67686.0,67685.0,0.79859211]
[1729563086124,0.023827,67686.0,67685.0,0.79959211]
[1729563088151,0.023827,67686.0,67685.0,0.52179829]
[1729563088805,0.023827,67686.0,67685.0,0.63179829]
[1729563090198,0.023827,67686.0,67685.0,0.62679829]
[1729563090409,0.023827,67686.0,67685.0,0.62179829]
[1729563091797,0.023827,67686.0,67685.0,0.61679829]
[1729563092004,0.023827,67686.0,67685.0,0.31969829]
[1729563094143,0.014827,67686.0,67685.0,0.31869829]
[1729563094392,0.000827,67686.0,67685.0,0.31769829]
[1729563094608,0.014827,67686.0,67685.0,0.31869829]
[1729563094818,0.028827,67686.0,67685.0,0.31869829]
[1729563095041,0.014827,67686.0,67685.0,0.31869829]
[1729563095459,0.028827,67686.0,67685.0,0.31869829]
[1729563095891,0.028827,67686.0,67685.0,0.31769829]
[1729563095892,0.014827,67686.0,67685.0,0.31769829]
[1729563096152,0.014827,67686.0,67685.0,0.34069829]
[1729563096361,0.028827,67686.0,67685.0,0.34069829]
[1729563096803,0.028827,67686.0,67685.0,0.72289211]
[1729563097020,0.028827,67686.0,67685.0,0.80239211]
[1729563097231,0.028827,67686.0,67685.0,0.89879542]
[1729563097722,0.000827,67686.0,67685.0,0.89879542]
[1729563097947,0.000827,67686.0,67685.0,0.85013652]
[1729563098172,0.014827,67686.0,67685.0,0.85013652]
[1729563098387,0.000827,67686.0,67685.0,0.85013652]
[1729563098612,0.012827,67686.0,67685.0,0.85013652]
[1729563099272,0.026827,67686.0,67685.0,0.85013652]
[1729563099706,0.012827,67686.0,67685.0,0.85013652]
[1729563099889,0.024827,67686.0,67685.0,0.85013652]
[1729563104060,0.024827,67686.0,67685.0,0.87496352]
[1729563106466,0.024827,67686.0,67685.0,0.4282697]
[1729563106676,0.024827,67686.0,67685.0,0.34752529]
[1729563107932,0.024827,67686.0,67685.0,0.34917929]
[1729563108160,0.012827,67686.0,67685.0,0.34917929]
[1729563108341,0.000827,67686.0,67685.0,0.34917929]
[1729563108568,0.026827,67686.0,67685.0,0.34917929]
[1729563108801,0.012827,67686.0,67685.0,0.34917929]
[1729563109040,0.012827,67686.0,67685.0,0.37217929]
[1729563109041,0.000827,67686.0,67685.0,0.37217929]
[1729563109265,0.000827,67686.0,67685.0,0.36717929]
[1729563109467,0.000827,67686.0,67685.0,0.37217929]
[1729563109661,0.014827,67686.0,67685.0,0.37217929]
[1729563109897,0.028827,67686.0,67685.0,0.37217929]
[1729563110384,0.028827,67686.0,67685.0,0.31935229]
[1729563111042,0.201027,67686.0,67685.0,0.31435274]
[1729563112372,0.201027,67686.0,67685.0,0.16660974]
[1729563113472,0.206027,67686.0,67685.0,0.01265059]
[1729563113703,0.201027,67686.0,67685.0,0.01265059]
[1729563113923,0.201027,67686.0,67685.0,0.001654]
[1729563114374,0.201027,67686.0,67685.0,0.006654]
[1729563114812,0.187027,67686.0,67685.0,0.001654]
[1729563115472,0.173027,67686.0,67685.0,0.001654]
[1729563115689,0.40467098,67686.0,67685.0,0.001654]
[1729563115914,0.40567098,67686.0,67685.0,0.001654]
[1729563116131,0.326768,67686.0,67685.0,0.001654]
[1729563116361,0.178027,67686.0,67685.0,0.001654]
[1729563116812,0.179027,67686.0,67685.0,0.001654]
[1729563117025,0.193027,67686.0,67685.0,0.001654]
[1729563117229,0.179027,67686.0,67685.0,0.001654]
[1729563117648,0.180027,67686.0,67685.0,0.001654]
[1729563117818,0.178027,67686.0,67685.0,0.001654]
[1729563118257,0.180027,67686.0,67685.0,0.001654]
[1729563118709,0.179027,67686.0,67685.0,0.001654]
[1729563119146,0.25902998,67686.0,67685.0,0.001654]
[1729563120443,0.180027,67686.0,67685.0,0.001654]
[1729563122455,0.175027,67686.0,67685.0,0.149397]
[1729563122922,0.175027,67686.0,67685.0,0.15924394]
[1729563124423,0.175027,67686.0,67685.0,0.01150094]
[1729563124657,0.005,67680.0,67679.0,0.00165]
[1729563124870,0.65864164,67680.0,67679.0,0.00165]
[1729563125108,0.76364164,67680.0,67679.0,0.00165]
[1729563126960,0.76464164,67680.0,67679.0,0.00165]
[1729563127174,0.91260079,67680.0,67679.0,0.00165]
[1729563127387,0.91360079,67680.0,67679.0,0.00165]
[1729563127600,0.91460079,67680.0,67679.0,0.00165]
[1729563127820,0.91260079,67680.0,67679.0,0.00165]
[1729563128373,0.91360079,67680.0,67679.0,0.00165]
[1729563128790,0.91260079,67680.0,67679.0,0.00165]
[1729563129003,0.91360079,67680.0,67679.0,0.00165]
[1729563129866,0.91460079,67680.0,67679.0,0.00165]
[1729563130074,0.91360079,67680.0,67679.0,0.00165]
[1729563130285,0.91460079,67680.0,67679.0,0.00165]
[1729563130913,0.91360079,67680.0,67679.0,0.00165]
[1729563131840,0.91260079,67680.0,67679.0,0.00165]
[1729563132081,0.91460079,67680.0,67679.0,0.00165]
[1729563133710,0.91360079,67680.0,67679.0,0.00165]
[1729563133936,0.91260079,67680.0,67679.0,0.00165]
[1729563134153,0.91360079,67680.0,67679.0,0.00165]
[1729563134371,0.91460079,67680.0,67679.0,0.00165]
[1729563134796,0.91460079,67680.0,67678.0,0.03]
[1729563134797,0.432056,67679.0,67678.0,0.03]
[1729563135006,0.58101515,67679.0,67678.0,0.03]
[1729563136598,0.58201515,67679.0,67678.0,0.03]
[1729563137047,0.58301515,67679.0,67678.0,0.03]
[1729563143204,0.58301515,67679.0,67678.0,0.031654]
[1729563143634,0.58384215,67679.0,67678.0,0.031654]
[1729563148549,0.58384215,67679.0,67678.0,0.001654]
[1729563153615,0.62787884,67679.0,67678.0,0.001654]
[1729563153826,0.58384215,67679.0,67678.0,0.001654]
[1729563154440,0.81532631,67679.0,67678.0,0.001654]
[1729563154859,0.85951113,67679.0,67678.0,0.001654]
[1729563155227,0.66636716,67679.0,67678.0,0.001654]
[1729563156097,0.7324222,67679.0,67678.0,0.001654]
[1729563156303,0.82954051,67679.0,67678.0,0.001654]
[1729563156509,1.02807235,67679.0,67678.0,0.001654]
[1729563156714,0.93963225,67679.0,67678.0,0.001654]
[1729563156923,0.97849966,67679.0,67678.0,0.001654]
[1729563157127,1.06693993,67679.0,67678.0,0.001654]
[1729563157340,1.06695971,67679.0,67678.0,0.001654]
[1729563157546,1.0885914,67679.0,67678.0,0.001654]
[1729563158311,0.91499497,67679.0,67678.0,0.001654]
[1729563158509,1.02559722,67679.0,67678.0,0.001654]
[1729563158970,1.02559722,67679.0,67651.0,0.001672]
[1729563158971,0.01,67656.0,67655.0,0.22477498]
[1729563159303,0.47003654,67656.0,67655.0,0.2330211]
[1729563159507,0.58912973,67656.0,67655.0,0.01387127]
[1729563159716,0.58912973,67656.0,67655.0,0.001652]
[1729563159717,0.42578547,67656.0,67655.0,0.001652]
[1729563160046,0.4921588,67656.0,67655.0,0.001652]
[1729563160250,0.43278547,67656.0,67655.0,0.001652]
[1729563160449,0.57474462,67656.0,67655.0,0.001652]
[1729563160656,0.57574462,67656.0,67655.0,0.001652]
[1729563160854,0.57674462,67656.0,67655.0,0.001652]
[1729563161241,0.62096895,67656.0,67655.0,0.001652]
[1729563162121,0.002,67656.0,67655.0,0.29841915]
[1729563162314,0.002,67656.0,67655.0,0.47951915]
[1729563162548,0.002,67656.0,67655.0,0.49184489]
[1729563162981,0.001,67656.0,67655.0,0.49184489]
[1729563163183,0.152779,67669.0,67655.0,0.49184489]
[1729563163184,0.14778,67668.0,67660.0,0.147797]
[1729563163391,0.06163055,67667.0,67661.0,0.16138896]
[1729563164020,0.20941355,67667.0,67661.0,0.16138896]
[1729563164863,0.147784,67666.0,67661.0,0.16138896]
[1729563165255,0.147788,67665.0,67661.0,0.16138896]
[1729563165731,0.31576747,67665.0,67661.0,0.16138896]
[1729563166168,0.31576747,67665.0,67661.0,0.18638896]
[1729563166381,0.31576747,67665.0,67661.0,0.17438896]
[1729563166598,0.16797947,67665.0,67661.0,0.16304096]
[1729563166801,0.16797947,67665.0,67661.0,0.17704096]
[1729563166802,0.16897947,67665.0,67661.0,0.17704096]
[1729563167000,0.002,67665.0,67661.0,0.19104096]
[1729563167224,0.149788,67665.0,67661.0,0.19104096]
[1729563167436,0.0670458,67665.0,67661.0,0.19104096]
[1729563167646,0.14779,67664.0,67661.0,0.19104096]
[1729563168498,0.14779,67664.0,67661.0,0.16304096]
[1729563168861,0.002,67664.0,67663.0,0.005]
[1729563169062,0.002,67664.0,67663.0,0.30175015]
[1729563169507,0.002,67664.0,67663.0,0.31417996]
[1729563169669,0.16797947,67669.0,67663.0,0.16638896]
[1729563169885,0.25544618,67669.0,67664.0,0.14895915]
[1729563170090,0.16797947,67665.0,67664.0,0.14895915]
[1729563170297,0.08746671,67669.0,67666.0,0.147783]
[1729563170557,0.08746671,67669.0,67667.0,0.14895915]
[1729563171178,0.08746671,67669.0,67667.0,0.29674115]
[1729563171383,0.04427496,67672.0,67667.0,0.14895915]
[1729563171630,0.001,67669.0,67667.0,0.14895915]
[1729563172057,0.002,67669.0,67667.0,0.14895915]
[1729563172267,0.147774,67671.0,67667.0,0.14895915]
[1729563172467,0.147774,67671.0,67667.0,0.15595915]
[1729563172674,0.147774,67671.0,67667.0,0.16395915]
[1729563173037,0.22952668,67671.0,67667.0,0.14895915]
[1729563173257,0.001,67669.0,67667.0,0.15895915]
[1729563173486,0.002,67669.0,67667.0,0.16695915]
[1729563173959,0.002,67669.0,67668.0,0.01236344]
[1729563174191,0.002,67669.0,67668.0,0.16132259]
[1729563174653,0.001,67669.0,67668.0,0.16132259]
[1729563175325,0.147774,67671.0,67668.0,0.16132259]
[1729563175532,0.147774,67671.0,67669.0,0.14895915]
[1729563175750,0.148774,67671.0,67670.0,0.01221863]
[1729563175971,0.147774,67671.0,67670.0,0.01221863]
[1729563176419,0.147774,67671.0,67669.0,0.14895915]
[1729563176634,0.148774,67671.0,67669.0,0.14895915]
[1729563176854,0.149774,67671.0,67670.0,0.02021863]
[1729563177285,0.149774,67671.0,67670.0,0.008]
[1729563177749,0.148774,67671.0,67670.0,0.008]
[1729563178015,0.21666028,67671.0,67670.0,0.016]
[1729563178253,0.38606028,67671.0,67670.0,0.016]
[1729563178928,0.319174,67671.0,67670.0,0.016]
[1729563179374,0.3634526,67671.0,67670.0,0.016]
[1729563180741,0.36345427,67671.0,67670.0,0.016]
[1729563182000,0.319174,67671.0,67670.0,0.016]
[1729563182213,0.36345427,67671.0,67670.0,0.016]
[1729563182424,0.50277301,67671.0,67670.0,0.016]
[1729563182643,0.45849274,67671.0,67670.0,0.016]
[1729563184401,0.50277414,67671.0,67670.0,0.016]
[1729563184599,0.45849274,67671.0,67670.0,0.016]
[1729563186587,0.52991664,67671.0,67670.0,0.016]
[1729563186797,0.62696604,67671.0,67670.0,0.016]
[1729563186979,0.7155357,67671.0,67670.0,0.016]
[1729563187458,0.62696604,67671.0,67670.0,0.016]
[1729563187679,0.71553858,67671.0,67670.0,0.016]
[1729563187893,0.62696604,67671.0,67670.0,0.016]
[1729563188340,0.46349274,67671.0,67670.0,0.016]
[1729563188549,0.62696534,67671.0,67670.0,0.016]
[1729563188764,0.71553755,67671.0,67670.0,0.016]
[1729563189699,0.73647221,67671.0,67670.0,0.016]
[1729563189901,0.73647221,67671.0,67669.0,0.001652]
[1729563189902,0.257775,67670.0,67669.0,0.001652]
[1729563190117,0.90731781,67670.0,67669.0,0.001652]
[1729563191382,0.75835866,67670.0,67669.0,0.001652]
[1729563191592,0.76035866,67670.0,67669.0,0.001652]
[1729563191813,0.59237919,67670.0,67669.0,0.001652]
[1729563192019,0.76035866,67670.0,67669.0,0.001652]
[1729563192239,0.76135866,67670.0,67669.0,0.001652]
[1729563192455,0.75635866,67670.0,67669.0,0.001652]
[1729563192664,0.76135866,67670.0,67669.0,0.001652]
[1729563193091,0.75835866,67670.0,67669.0,0.001652]
[1729563193565,0.8429952,67670.0,67669.0,0.001652]
[1729563193770,0.8439952,67670.0,67669.0,0.001652]
[1729563194053,0.8379952,67670.0,67669.0,0.001652]
[1729563194253,0.8389952,67670.0,67669.0,0.004652]
[1729563195521,0.8399952,67670.0,67669.0,0.004652]
[1729563199949,0.50183294,67670.0,67669.0,0.004652]
[1729563200164,0.0684153,67670.0,67669.0,0.004652]
[1729563200619,0.002,67670.0,67669.0,0.004652]
[1729563201068,0.149775,67670.0,67669.0,0.01484241]
[1729563201292,0.149775,67670.0,67669.0,0.004652]
[1729563201506,0.149775,67670.0,67669.0,0.01484241]
[1729563201737,0.149775,67670.0,67669.0,0.004652]
[1729563201946,0.149775,67670.0,67669.0,0.01489762]
[1729563202195,0.149775,67670.0,67669.0,0.004652]
[1729563202401,0.21619202,67670.0,67669.0,0.01489762]
[1729563202609,0.21619202,67670.0,67669.0,0.004652]
[1729563202610,0.21619376,67670.0,67669.0,0.004652]
[1729563202817,0.21619376,67670.0,67669.0,0.01489762]
[1729563203025,0.38417305,67670.0,67669.0,0.01489762]
[1729563203262,0.31775447,67670.0,67669.0,0.01489762]
[1729563203502,0.38417305,67670.0,67669.0,0.01489762]
[1729563203709,0.38417375,67670.0,67669.0,0.01489762]
[1729563204542,0.38417375,67670.0,67669.0,0.004652]
[1729563204543,0.31775447,67670.0,67669.0,0.004652]
[1729563204766,0.31775447,67670.0,67669.0,0.01489762]
[1729563204977,0.31775447,67670.0,67669.0,0.004652]
[1729563205169,0.38417375,67670.0,67669.0,0.004652]
[1729563206059,0.31775447,67670.0,67669.0,0.004652]
[1729563206276,0.56983449,67670.0,67669.0,0.004652]
[1729563207110,0.31775447,67670.0,67669.0,0.004652]
[1729563207365,0.56989104,67670.0,67669.0,0.004652]
[1729563209543,0.56997335,67670.0,67669.0,0.004652]
[1729563210446,0.48134187,67670.0,67669.0,0.01494712]
[1729563210672,0.06847226,67670.0,67669.0,0.30138915]
[1729563210911,0.002,67670.0,67669.0,0.3113887]
[1729563211131,0.002,67670.0,67669.0,0.32168382]
[1729563211588,0.002,67670.0,67669.0,0.31868382]
[1729563211839,0.001,67670.0,67669.0,0.31868382]
[1729563212048,0.148775,67670.0,67669.0,0.01594712]
[1729563212262,0.21524726,67670.0,67669.0,0.005652]
[1729563212488,0.25040648,67670.0,67669.0,0.002652]
[1729563212697,0.39995797,67670.0,67669.0,0.001652]
[1729563213145,0.39995797,67670.0,67669.0,0.002652]
[1729563213146,0.55078865,67670.0,67669.0,0.002652]